Cogmind - Beta 13 @@@ ROGUE MODE // 2024.04.14 @ 20:16:13 Player: Red_Zig Result: Destroyed by G-34 Mercenary with Small Laser Performance ------------- Evolutions (0) 0 Regions Visited (4) 800 Robots Destroyed (40) 200 Value Destroyed (822) 822 Prototype IDs (23) 460 Alien Tech Used (0) 0 Bonus (300) 300 TOTAL SCORE: 2582 Bonus ------- Aligned with FarCom 300 Cogmind --------- Core Integrity 0/250 Matter 193/300 Energy 125/125 System Corruption 6% Temperature Warm (110) Movement Walking (190) Ox1 Location -9/Mines Parts ------- > --- POWER (1) -------- Light Ion Engine > --- PROPULSION (2) --- Carbon-fiber Leg Carbon-fiber Leg > --- UTILITY (2) ------ Large Storage Unit Advanced Targeting Computer > --- WEAPON (2) ------- Minigun Flak Cannon > --- INVENTORY (15) --- Light Ion Engine Aluminum Leg Aluminum Leg Heat Sink Compact Battery (200) Compact Matter Pod (150) Experimental Sensor Array Signal Interpreter Improved Terrain Scanner Light Armor Plating XL Autogun Array Peak State ------------ > --- POWER ------------ Light Ion Engine > --- PROPULSION ------- Carbon-fiber Leg Carbon-fiber Leg > --- UTILITY ---------- Large Storage Unit Advanced Targeting Computer > --- WEAPON ----------- Minigun Flak Cannon > --- INVENTORY -------- Ion Engine Aluminum Leg Aluminum Leg Heat Sink Compact Battery Compact Matter Pod Experimental Sensor Array Signal Interpreter Improved Terrain Scanner Light Armor Plating XL Autogun Array [Rating: 23] Favorites ----------- Power Light Ion Engine Engine Light Ion Engine Power Core Light Nuclear Core Propulsion Light Treads Treads Light Treads Leg Carbon-fiber Leg Utility Seismic Detector Device Seismic Detector Storage Small Storage Unit Processor Advanced Targeting Computer Weapon Assault Rifle Energy Gun Small Laser Ballistic Gun Assault Rifle Ballistic Cannon Flak Cannon Special Weapon Mining Laser Build | -11 -10 -10 -10 -9 ------- Run | Yrd Mat Min Exi Min Slots Evolved . | . . . . . Power . | . . . . . Propulsion . | . . . . . Utility . | . . . . . Weapon . | . . . . . Parts Attached 36 | 14 12 7 . 3 Power 4 | 1 1 1 . 1 Engine 3 | 1 . 1 . 1 Core 1 | . 1 . . . Reactor . | . . . . . Propulsion 9 | 2 5 2 . . Treads 5 | 2 3 . . . Leg 4 | . 2 2 . . Wheel . | . . . . . Hover . | . . . . . Flight . | . . . . . Utility 8 | 3 4 1 . . Device 4 | 2 2 . . . Storage 3 | 1 2 . . . Processor 1 | . . 1 . . Hackware . | . . . . . Protection . | . . . . . Artifact . | . . . . . Weapon 15 | 8 2 3 . 2 Energy Gun 1 | . 1 . . . Energy Cannon . | . . . . . Ballistic Gun 9 | 5 1 2 . 1 Ballistic Cannon 2 | . . 1 . 1 Launcher . | . . . . . Special Weapon 3 | 3 . . . . Impact Weapon . | . . . . . Slashing Weapon . | . . . . . Piercing Weapon . | . . . . . Special Melee Weapon . | . . . . . Unidentified Prototypes . | . . . . . Parts Lost 5 | 2 2 1 . . Power 1 | . 1 . . . Propulsion 1 | 1 . . . . Utility . | . . . . . Weapon 3 | 1 1 1 . . Highest Loss Streak 2 | 2 1 1 . . To Critical Strikes . | . . . . . Average Slot Usage (%) 87 | . 86 90 74 93 Engine 8 | . 3 5 14 14 Core 1 | . 2 . . . Treads 10 | . 19 16 . . Leg 15 | . 3 11 28 28 Device 9 | . 20 7 . . Storage 11 | . 7 14 14 14 Processor 7 | . . 7 14 14 Energy Gun 2 | . 5 . . . Ballistic Gun 15 | . 22 20 1 11 Ballistic Cannon 4 | . . 7 1 11 Naked Turns . | . . . . . Heaviest Build 34 | 13 24 34 34 34 Greatest Support 40 | 40 40 40 30 30 Greatest Overweight (x) 3 | 3 . 1 1 1 Average Overweight (x) . | . . . . . Largest Inventory Capacity 15 | 8 15 15 15 15 Average Capacity 7 | 6 10 15 15 15 Most Carried 15 | 5 8 15 15 15 Average Carried 4 | 2 5 11 14 13 Final Capacity 15 | 5 15 15 15 15 Final Carried 15 | 4 8 15 15 14 Class Distribution -------------------- 99% | Mutant Dominant Class ---------------- Mutant | -10/Materials Mutant | -10/Mines Mutant | -10/Exiles Mutant | -9/Mines Resources | -11 -10 -10 -10 -9 ----------- Run | Yrd Mat Min Exi Min Matter Collected 1336 | 357 486 321 78 94 Remotely . | . . . . . Salvage Created 1092 | 182 555 201 . 154 Parts 92 | 24 31 14 . 23 Haulers Intercepted 2 | . 2 . . . Recyclers Shooed . | . . . . . Parts Field Recycled . | . . . . . Retrieved Matter . | . . . . . Parts Self-Destructed . | . . . . . Prevented . | . . . . . Kills | -11 -10 -10 -10 -9 ------- Run | Yrd Mat Min Exi Min Combat Hostiles Destroyed 27 | . 11 6 . 10 Guns 17 | . 11 4 . 2 Cannons 10 | . . 2 . 8 Classes Destroyed 7 | 2 5 . . . Worker 1 | 1 . . . . Tunneler 8 | 8 . . . . Hauler 2 | . 2 . . . Operator 1 | . 1 . . . Watcher 1 | . 1 . . . Swarmer 11 | . 3 . . 8 Grunt 16 | . 8 6 . 2 Best Kill Streak 4 | 4 4 2 . 4 Combat Bots Only 4 | . 4 2 . 4 Max Kills in Single Turn 3 | 2 1 2 . 3 Gunslinging . | . . . . . Exploded . | . . . . . Melee . | . . . . . Uniques/NPCs Destroyed . | . . . . . Combat | -11 -10 -10 -10 -9 -------- Run | Yrd Mat Min Exi Min Hostile Shots Fired 102 | . 56 27 . 19 Missed 28 | . 16 6 . 6 Damage Taken 1177 | 287 481 294 . 115 Core 251 | 36 117 76 . 22 Absorbed by Shields . | . . . . . Core Remaining (%) 85 | 85 . . . . Volleys Fired 271 | 190 46 22 . 13 Largest 2 | 2 2 2 . 2 Hottest 200 | 200 60 69 . 69 Shots Fired 383 | 222 90 43 . 28 Gun 165 | 28 90 33 . 14 Cannon 24 | . . 10 . 14 Launcher . | . . . . . Special 194 | 194 . . . . Kinetic 181 | 28 82 43 . 28 Thermal 202 | 194 8 . . . Explosive . | . . . . . Electromagnetic . | . . . . . Robot Hit Streak 15 | 3 15 8 . 7 Robot Miss Streak 5 | 3 3 4 . 5 Penetration Max . | . . . . . Secondary Targets . | . . . . . Shots Hit Robots 115 | 12 55 28 . 20 Core Hits 78 | 9 28 19 . 22 Critical Kills . | . . . . . Critical Parts Destroyed 1 | . . . . 1 Critical Strikes 1 | . . . . 1 Destroy 1 | . . . . 1 Melee Attacks . | . . . . . Impact . | . . . . . Slashing . | . . . . . Piercing . | . . . . . Sneak Attacks . | . . . . . Combat Hostiles . | . . . . . Follow-up Attacks . | . . . . . Damage Inflicted 1667 | 156 690 386 . 435 Guns 1199 | 156 690 188 . 165 Cannons 468 | . . 198 . 270 Explosions . | . . . . . Melee . | . . . . . Ramming . | . . . . . Kinetic 1588 | 156 611 386 . 435 Thermal 79 | . 79 . . . Explosive . | . . . . . Electromagnetic . | . . . . . Impact . | . . . . . Slashing . | . . . . . Piercing . | . . . . . Highest Corruption 6 | 6 6 6 6 6 Average Corruption 6 | 6 6 6 6 6 Corruption Purged . | . . . . . Corruption Blocked . | . . . . . Effects 95 | 13 34 14 8 26 Message Errors 23 | 5 8 3 2 5 Matter Fused 24 | 4 9 5 2 4 Heat Flow Errors 15 | 1 7 1 1 5 Energy Discharges 4 | 1 1 1 1 . Parts Rejected 1 | . 1 . . . Parts Fused 1 | . 1 . . . Data Loss (minor) 12 | 2 3 3 1 3 Data Loss (major) 7 | . 1 1 1 4 Misfires 4 | . 1 . . 3 Alerts 1 | . . . . 1 Weapon Failures 3 | . 2 . . 1 Overload Shots . | . . . . . Overflow Damage . | . . . . . Projectiles . | . . . . . Explosions . | . . . . . Melee . | . . . . . Knockbacks 16 | . . 6 . 10 Impact . | . . . . . Kinetic 10 | . . 3 . 7 Secondary 6 | . . 3 . 3 Self-Inflicted Damage . | . . . . . Shots . | . . . . . Rammed . | . . . . . Targets Rammed . | . . . . . Kicked . | . . . . . Crushed . | . . . . . Highest Temperature 280 | 133 280 149 131 247 Average Temperature 40 | 31 91 34 66 73 Received Heat Transfer 468 | . 228 210 . 30 Effects 1 | . . . . 1 Energy Bleed 1 | . . . . 1 Siege Activations . | . . . . . Robots Corrupted . | . . . . . Combat Hostiles . | . . . . . Parts Fried . | . . . . . Impact Corruptions . | . . . . . Robots Melted . | . . . . . Combat Hostiles . | . . . . . Parts Melted . | . . . . . Heat Transferred 175 | . 175 . . . Parts Sabotaged . | . . . . . Parts Stolen . | . . . . . Parts Stripped . | . . . . . Power Chain Reactions . | . . . . . Alert | -11 -10 -10 -10 -9 ------- Run | Yrd Mat Min Exi Min Peak Influence 332 | 42 332 70 . 180 Initial 14 | . 14 . . . Average 13 | 4 85 32 . 26 Maximum Alert Level 1 | . 1 . . . Low Security (%) 99 | 100 91 100 . 100 Level 1 . | . 8 . . . Level 2 . | . . . . . Level 3 . | . . . . . Level 4 . | . . . . . Level 5 . | . . . . . High Security . | . . . . . Max Security . | . . . . . Squads Dispatched 4 | . 3 1 . . Investigation 2 | . 1 1 . . Extermination . | . . . . . Reinforcement 2 | . 2 . . . Assault . | . . . . . Garrison . | . . . . . Intercept . | . . . . . Searches Triggered . | . . . . . Construction Impeded . | . . . . . Haulers Reinforced . | . . . . . Active Scanning Responses . | . . . . . Cargo Convoy Interrupts . | . . . . . Stealth | -11 -10 -10 -10 -9 --------- Run | Yrd Mat Min Exi Min Distress Signals 4 | . 3 . . 1 Communications Jammed . | . . . . . Distress Signals . | . . . . . Times Spotted 37 | . 20 6 . 11 Peak Tracking Total 5 | . 5 2 . 4 Tactical Retreats 1 | . 1 . . . Traps | -11 -10 -10 -10 -9 ------- Run | Yrd Mat Min Exi Min Traps Triggered 1 | . 1 . . . Indirectly . | . . . . . Trap Hack Attempts . | . . . . . Triggered . | . . . . . Disarmed . | . . . . . Reprogrammed . | . . . . . Reused . | . . . . . Traps Extracted . | . . . . . Installed . | . . . . . Triggered . | . . . . . Machines | -11 -10 -10 -10 -9 ---------- Run | Yrd Mat Min Exi Min Machines Disabled 1 | . 1 . . . Max in Single Turn 1 | . 1 . . . Machines Repaired . | . . . . . Machines Dismantled . | . . . . . Machines Sabotaged . | . . . . . Overloaded Fab Kills . | . . . . . Hacking | -11 -10 -10 -10 -9 --------- Run | Yrd Mat Min Exi Min Machines Accessed 3 | . . 2 1 . Terminals 1 | . . 1 . . Fabricators . | . . . . . Repair Stations . | . . . . . Recycling Units . | . . . . . Scanalyzers . | . . . . . Garrison Access . | . . . . . Total Hacks 3 | . . 2 1 . Successful 2 | . . 1 1 . Failed 1 | . . 1 . . Catastrophic 1 | . . 1 . . Database Lockouts . | . . . . . Manual 2 | . . 1 1 . Terminals 1 | . . 1 . . Fabricators . | . . . . . Repair Stations . | . . . . . Recycling Units . | . . . . . Scanalyzers . | . . . . . Garrison Access . | . . . . . Terminal Hacks 2 | . . 1 1 . Open Door 1 | . . 1 . . Derelict Proto ID Bank 1 | . . . 1 . Fabricator Hacks . | . . . . . Repair Station Hacks . | . . . . . Recycling Unit Hacks . | . . . . . Scanalyzer . | . . . . . Garrison Access Hacks . | . . . . . Unauthorized Hacks . | . . . . . Terminals . | . . . . . Fabricators . | . . . . . Repair Stations . | . . . . . Recycling Units . | . . . . . Scanalyzers . | . . . . . Garrison Access . | . . . . . Data Cores Recovered . | . . . . . Used . | . . . . . Hacking Detections . | . . . . . Full Trace Events . | . . . . . Feedback Events . | . . . . . Feedback Blocked . | . . . . . Robot Schematics Acquired . | . . . . . Robots Built . | . . . . . Authchips . | . . . . . Time . | . . . . . Total Robot Build Rating . | . . . . . Part Schematics Acquired . | . . . . . Parts Built . | . . . . . Authchips . | . . . . . Time . | . . . . . Total Part Build Rating . | . . . . . Parts Repaired . | . . . . . Time . | . . . . . Parts Recycled . | . . . . . Recycled Matter . | . . . . . Retrieved Matter . | . . . . . Retrieved Components . | . . . . . Parts Scanalyzed . | . . . . . Part Schematics Acquired . | . . . . . Parts Damaged . | . . . . . Bothacking | -11 -10 -10 -10 -9 ------------ Run | Yrd Mat Min Exi Min Used RIF Installer . | . . . . . Robots Hacked . | . . . . . Non-combat . | . . . . . Combat . | . . . . . Robot Hacks Applied . | . . . . . Relay Couplers Released . | . . . . . Fabnet Peak Effective % . | . . . . . Robots Rewired . | . . . . . Allies Hacked . | . . . . . Hacks Repelled . | . . . . . Allies | -11 -10 -10 -10 -9 -------- Run | Yrd Mat Min Exi Min Total Allies . | . . . . . Largest Group . | . . . . . Highest-Rated Group . | . . . . . Highest-Rated Ally . | . . . . . Total Orders . | . . . . . Ally Attacks . | . . . . . Total Damage . | . . . . . Kills . | . . . . . Allies Corrupted . | . . . . . Allies Melted . | . . . . . Intel | -11 -10 -10 -10 -9 ------- Run | Yrd Mat Min Exi Min Robot Analysis Total . | . . . . . Derelict Logs Recovered 2 | . . 1 . 1 Drone Launches . | . . . . . Drone Recoveries . | . . . . . Exploration | -11 -10 -10 -10 -9 ------------- Run | Yrd Mat Min Exi Min Turns Passed 16853 | 13671 1290 587 406 899 Spaces Moved 6444 | 4786 706 288 318 346 Core 301 | 301 . . . . Treads 5266 | 4485 600 181 . . Legs 877 | . 106 107 318 346 Wheels . | . . . . . Hover . | . . . . . Flight . | . . . . . Fastest Speed 50 | 50 120 120 120 120 Average Speed 160 | 162 153 170 125 162 Slowest Speed 200 | 200 160 190 190 190 Overloaded Moves . | . . . . . Propulsion Burnouts . | . . . . . Robots Hopped . | . . . . . Cave-ins Triggered 1 | 1 . . . . Exploration Rate (%) 72 | 115 90 44 69 44 Regions Visited 4 Branch Regions 3 Pre-discovered Areas . | . . . . . Known Exits Taken . | . . . . . Unknown Exits Taken 4 | 1 1 1 1 . Scrap Searched 2 | . . 1 . 1 Spaces Dug 56 | 56 . . . . Terrain Destroyed 74 | 74 . . . . Melee . | . . . . . Projectile 74 | 74 . . . . AOE . | . . . . . Terrain Rammed . | . . . . . Walls Destroyed . | . . . . . Machines Disabled . | . . . . . Actions | -11 -10 -10 -10 -9 --------- Run | Yrd Mat Min Exi Min Total 12220 | 10068 819 346 328 659 Wait 5429 | 5074 43 17 . 295 Move 6440 | 4785 705 287 317 346 Hop . | . . . . . Pick Up 23 | 4 7 8 3 1 Fast Attach 17 | 8 4 5 . . Attach 6 | 1 2 1 . 2 Detach 2 | 1 . 1 . . Swap 13 | 5 6 1 . 1 Drop 19 | . 6 4 8 1 Fire 271 | 190 46 22 . 13 Melee . | . . . . . Ram . | . . . . . Kick . | . . . . . Crush . | . . . . . Escape Stasis . | . . . . . Rewire . | . . . . . Trap . | . . . . . Miscellaneous . | . . . . . Route ------- -11/Scrapyard -10/Materials (discovered 5 exits: [*Mat x3] / *Min x2) -10/Mines -10/Exiles -9/Mines History --------- Turn | Location | Event 4 | -11/Scrapyard | Discovered new exit (range 15) 13105 | -11/Scrapyard | Crushed by falling debris 13672 | -11/Scrapyard | Entered Materials 13673 | -10/Materials | Build established: Mutant 14096 | -10/Materials | Discovered new exit (range 12) 14149 | -10/Materials | Discovered new exit (range 8) 14172 | -10/Materials | Derelicts attacked the area 14284 | -10/Materials | Core integrity fell below 50% 14354 | -10/Materials | Discovered new exit (range 6) 14462 | -10/Materials | Discovered new exit (range 16) 14710 | -10/Materials | Discovered new exit (range 15) 14962 | -10/Materials | Entered Mines 15127 | -10/Mines | Learned Materials security intel 15207 | -10/Mines | Met a Derelict shopkeep closing up shop 15359 | -10/Mines | Core integrity fell below 20% 15506 | -10/Mines | Found a damaged Exp. Sensor Array with a note attached 15510 | -10/Mines | Found Prototype Device 15541 | -10/Mines | Deemed a non-threat by the Exiles lab entrance 15541 | -10/Mines | Discovered new exit (range 5) 15549 | -10/Mines | Entered Exiles 15599 | -10/Exiles | Met 8R-AWN 15619 | -10/Exiles | Met EX-HEX 15695 | -10/Exiles | Met EX-BIN 15710 | -10/Exiles | Aligned with FarCom system 15711 | -10/Exiles | Given EX-Vault access code 15740 | -10/Exiles | Opened EX-Vault 15754 | -10/Exiles | Found XL Autogun Array 15780 | -10/Exiles | Warned to stay clear of 0b10 Research branches 15816 | -10/Exiles | Met EX-DEC 15939 | -10/Exiles | Discovered new exit (range 10) 15955 | -10/Exiles | Left Exiles lab with XL Autogun Array 15955 | -10/Exiles | Entered Mines 15979 | -9/Mines | Learned 8 Materials zone layouts 16854 | -9/Mines | Destroyed by G-34 Mercenary with Small Laser Last Messages --------------- 16705_ S-10 Pest suffers critical hit (Destroy). 16705_ Destroyed Lgt. Ion Engine. 16705_ S-10 Pest knocked back. 16705_ S-10 Pest destroyed. 16710_ Acquired 6 matter. 16716_ Acquired 3 matter. 16773_ System corrupted: Heat flow error (+265). 16776_ Overheating: Energy bleed (-31). 16791_ System corrupted: FCS attempts to trigger Minigun. 16791_ System corrupted: Minigun misfires. 16810_ System corrupted: FCS attempts to trigger Flak Cannon. 16810_ System corrupted: Flak Cannon misfires. 16830_ N W4AB%GP%RBQJ RMOSHZTBP,BGG9VFXXZ 16841_ G-47 Trooper knocked back. 16841_ G-47 Trooper destroyed. 16844_ G-34 Mercenary knocked back. 16846_ G-34 Mercenary destroyed. 16849_ G-34 Mercenary knocked back. Map ----- +----------------------------------------------------+ | | | | | | | | | | | | | | | | | | | | | ????????????????????????????????????????? | | ????????####?####???????????????????????? | | ???????## ### ##??????????????????????? | | #?????## ###????????????????????? | | #????## ##???????????????????? | | #???## #???????????????????? | | ##### #???????????????????? | | ##???????????????????? | | #### #????????????????????? | | #??# ### #????????????????????? | | #??## ##?# ## #????????????????????? | | #???# #??# #?###????????????????????? | | #???## ##??# #????????????????????????? | | #????#####???# #????????????????????????? | | #????????????# ###############??????????? | | ?????????????# u uk=%@=[g#??????????? | | ?????????????# #############=#??????????? | | ???????????? #???????????# #??????????? | | ??????????? ##???????????# #??????????? | | ??????????## ?????????????# #??????????? | | ???????????# ?????????????# #??????????? | | ??????????? ?????????????# #??????????? | | ?????????? ?????????????# #??????????? | | ????????? ?????????????# ??????????? | | ????????? ? ?????????????# ??????????? | | ???????? ?????????????# ?????????? | | ??????? ? ??????????????## ?????????? | | ??????? #?# ????????????????# ????????? | | ???????????# ????????????????? ????????? | | ???????????? ????????????????? ???????? | | ?????????????????????????????? #???????? | | ?????????????????????????????? #???????? | | ??????????????????????????????? #???????? | | ??????????????????????????????? #???????? | | ??????????????????????????????? #???????? | | ????????????????????????????????#???????? | | ????????????????????????????????????????? | | ????????????????????????????????????????? | | ????????????????????????????????????????? | | ????????????????????????????????????????? | +----------------------------------------------------+ Best States ------------- Heat Dissipation 25 Energy Generation 14 Energy Capacity 250 Matter Stores 300 Matter Capacity 300 Sight Range 16 Terrain Scan Range 16 Terrain Scan Density 10 Evasion (%) 55 Targeting Accuracy 8 Recoil Reduction 2 Item Schematics ----------------- None Robot Schematics ------------------ None Fabricated ------------ Nothing Alien Tech Used ----------------- None Achievements -------------- None Challenges ------------ None Game ------ Seed ShockEtherialUnit Manual? 0 Play Time 00:50:53 Cumulative 23.9 hours Start 2024.04.14 @ 19:26:31 End 2024.04.14 @ 20:16:13 Sessions 1 Manual Loads 0 Difficulty Rogue Special Mode None Game No. 22 Rogue 10 Adventurer 12 Explorer 0 Win Type - Total 0 Types 0/0/0/0/0/0/0/0/0 Lore% 14 Gallery% 24 Achievement% 22 Wizard Run 0 Options --------- Layout 2 ASCII 0 Keyboard 0 Movement Mouse Keybinds 0 Fullscreen 1 Font 24/Smallcaps Map View 50x44 Zoom Use 15% Tactical HUD 1 Map Filters NONE Filters NONE Steam 1 RUN: e846a5c4-475e-4485-887b-f5c2dbbc7b86